bitfinex-derivatives/quotes_BTCF0:USTF0_20241103
["timestamp","ask_amount","ask_price","bid_price","bid_amount"]
[1730664114959,0.065452,68777.0,68772.0,0.065456]
[1730664115161,0.1088,68779.0,68772.0,0.065456]
[1730664115345,0.065461,68768.0,68761.0,0.3608]
[1730664115546,0.1088,68779.0,68761.0,0.3608]
[1730664115547,0.09861,68769.0,68761.0,0.3608]
[1730664115762,0.065463,68765.0,68762.0,0.065465]
[1730664116452,0.1309,68768.0,68763.0,0.065464]
[1730664116655,0.19636,68768.0,68763.0,0.065464]
[1730664117050,0.19636,68768.0,68761.0,0.3628]
[1730664117257,0.19636,68768.0,68764.0,0.065463]
[1730664117555,0.065462,68766.0,68764.0,0.065463]
[1730664117761,0.065463,68765.0,68761.0,0.3628]
[1730664117969,0.19636,68768.0,68761.0,0.3628]
[1730664118150,0.19636,68768.0,68764.0,0.065464]
[1730664118351,0.1309,68768.0,68761.0,0.3628]
[1730664118546,0.0321,68768.0,68767.0,0.065461]
[1730664118759,0.0988,68767.0,68766.0,0.065462]
[1730664119658,0.0988,68767.0,68761.0,0.3628]
[1730664119847,0.0988,68767.0,68766.0,0.065462]
[1730664120053,0.005,68768.0,68767.0,0.065461]
[1730664120546,0.1038,68768.0,68767.0,0.065461]
[1730664121263,0.16926,68768.0,68761.0,0.3608]
[1730664121459,0.16926,68768.0,68766.0,0.001]
[1730664121460,0.008,68767.0,68766.0,0.001]
[1730664121765,0.1068,68767.0,68766.0,0.001]
[1730664122059,0.1018,68767.0,68765.0,0.065462]
[1730664122263,0.0988,68767.0,68765.0,0.065462]
[1730664122863,0.004,68767.0,68766.0,0.065462]
[1730664123166,0.1078,68767.0,68766.0,0.066462]
[1730664123359,0.005,68767.0,68766.0,0.066462]
[1730664123657,0.01,68767.0,68766.0,0.066462]
[1730664124767,0.008,68767.0,68766.0,0.065462]
[1730664124953,0.0988,68775.0,68766.0,0.501702]
[1730664125155,0.164246,68783.0,68769.0,0.1118338]
[1730664125465,0.0988,68781.0,68779.0,0.065449]
[1730664127058,0.0988,68781.0,68780.0,0.065448]
[1730664127656,0.4735138,68788.0,68775.0,0.3608]
[1730664127855,0.36168,68788.0,68775.0,0.3608]
[1730664128174,0.001,68780.0,68779.0,0.1772828]
[1730664128757,0.0988,68790.0,68789.0,0.06544]
[1730664129157,0.0988,68793.0,68789.0,0.06544]
[1730664129363,0.065439,68791.0,68789.0,0.06544]
[1730664129765,0.0988,68793.0,68789.0,0.06544]
[1730664130865,0.0988,68793.0,68784.0,0.065444]
[1730664131065,0.1118338,68787.0,68784.0,0.065444]
[1730664131565,0.1118338,68787.0,68781.0,0.3608]
[1730664131762,0.065444,68785.0,68782.0,0.065446]
[1730664131964,0.3608,68786.0,68775.0,0.43499126]
[1730664132160,0.3608,68786.0,68784.0,0.065444]
[1730664132567,0.16424,68789.0,68777.0,0.04279126]
[1730664132775,0.3608,68788.0,68783.0,0.065445]
[1730664133366,0.0988,68787.0,68784.0,0.065444]
[1730664134566,0.0998,68787.0,68784.0,0.066444]
[1730664135575,0.1018,68787.0,68784.0,0.067444]
[1730664136769,0.1018,68787.0,68784.0,0.11023526]
[1730664136969,0.4616,68787.0,68784.0,0.10923526]
[1730664137272,0.4626,68787.0,68785.0,0.04279126]
[1730664137470,0.4626,68787.0,68786.0,0.04279126]
[1730664138067,0.4626,68787.0,68774.0,0.3608]
[1730664138068,0.96242,68787.0,68782.0,0.04279126]
[1730664138267,0.1118338,68783.0,68761.0,0.032]
[1730664138478,0.3608,68777.0,68761.0,0.032]
[1730664138665,0.3608,68777.0,68775.0,0.065453]
[1730664139563,0.3608,68777.0,68776.0,0.065452]
[1730664139771,0.3608,68777.0,68766.0,0.3658]
[1730664139965,0.0988,68776.0,68766.0,0.3658]
[1730664140162,0.065454,68775.0,68770.0,0.065458]
[1730664140367,0.065454,68775.0,68766.0,0.3658]
[1730664140574,0.065454,68775.0,68771.0,0.065456]
[1730664140875,0.065456,68772.0,68768.0,0.06546]
[1730664141765,0.3608,68774.0,68771.0,0.003]
[1730664142771,0.426254,68774.0,68771.0,0.003]
[1730664143279,0.1772898,68772.0,68771.0,0.003]
[1730664143981,0.065459,68770.0,68768.0,0.001]
[1730664144176,0.065459,68770.0,68766.0,0.065461]
[1730664145271,0.003,68770.0,68769.0,0.05705501]
[1730664145673,0.003,68770.0,68768.0,0.067459]
[1730664145869,0.001,68770.0,68768.0,0.066459]
[1730664146074,0.003,68770.0,68768.0,0.066459]
[1730664146378,0.004,68770.0,68768.0,0.066459]
[1730664147775,0.069458,68770.0,68768.0,0.001]
[1730664147975,0.069458,68770.0,68769.0,0.05736424]
[1730664148380,0.068458,68770.0,68768.0,0.05736424]
[1730664148580,0.068458,68770.0,68769.0,0.05736424]
[1730664148781,0.068458,68770.0,68768.0,0.05736424]
[1730664148982,0.066458,68770.0,68768.0,0.05736424]
[1730664149177,0.068458,68770.0,68769.0,0.001]
[1730664149485,0.068458,68770.0,68769.0,0.066459]
[1730664149486,0.003,68770.0,68769.0,0.066459]
[1730664149682,0.003,68770.0,68769.0,0.12382324]
[1730664149883,0.003,68770.0,68769.0,0.6145328]
[1730664150090,0.003,68770.0,68769.0,0.70691983]
[1730664150291,0.003,68770.0,68769.0,0.80511983]
[1730664150581,0.003,68770.0,68769.0,0.80411983]
[1730664150582,0.005,68770.0,68769.0,0.80411983]
[1730664150782,0.426242,68788.0,68769.0,0.82461867]
[1730664150783,0.3608,68788.0,68769.0,0.82461867]
[1730664150987,0.39695395,68788.0,68786.0,0.10843254]
[1730664151786,0.065442,68787.0,68786.0,0.04299054]
[1730664151988,0.065442,68787.0,68785.0,0.04299054]
[1730664152190,0.39695395,68788.0,68785.0,0.04299054]
[1730664152486,0.065443,68786.0,68785.0,0.04299253]
[1730664152691,0.065444,68785.0,68784.0,0.04299253]
[1730664154280,0.39695395,68788.0,68784.0,0.04299253]
[1730664154489,0.39695395,68788.0,68786.0,0.10843453]
[1730664154987,0.39695395,68788.0,68787.0,0.04299253]
[1730664155490,0.03615395,68788.0,68786.0,0.10843453]
[1730664155685,0.3608,68788.0,68787.0,0.04299253]
[1730664156190,0.3608,68788.0,68786.0,0.066442]
[1730664156191,0.3608,68788.0,68786.0,0.10943453]
[1730664156983,0.3608,68788.0,68787.0,0.065442]
[1730664157191,0.3608,68788.0,68787.0,0.10843453]
[1730664157394,0.3608,68788.0,68787.0,0.10943453]
[1730664157695,0.3608,68788.0,68787.0,0.066442]
[1730664157912,0.3608,68788.0,68787.0,0.10844538]
[1730664158390,0.3608,68788.0,68787.0,0.10844468]
[1730664158693,0.3608,68788.0,68787.0,0.066442]
[1730664158894,0.3608,68788.0,68787.0,0.067442]
[1730664159192,0.3608,68788.0,68787.0,0.1104446]
[1730664160087,0.4726338,68788.0,68787.0,0.002]
[1730664160291,0.5380748,68788.0,68787.0,0.002]
[1730664160491,0.57589623,68788.0,68787.0,0.002]
[1730664160988,0.61976373,68788.0,68787.0,0.001]
[1730664161389,0.61976373,68788.0,68787.0,0.002]
[1730664162399,0.61967521,68788.0,68787.0,0.002]
[1730664162689,0.57589623,68788.0,68787.0,0.002]
[1730664163390,0.57577058,68788.0,68787.0,0.002]
[1730664163594,0.67493058,68788.0,68787.0,0.002]
[1730664163997,1.15481212,68788.0,68787.0,0.001]
[1730664164499,1.15481212,68788.0,68776.0,0.065452]
[1730664164790,1.15481212,68788.0,68761.0,0.3608]
[1730664164791,0.065454,68775.0,68770.0,0.065458]
[1730664164991,0.3608,68771.0,68770.0,0.065458]
[1730664165192,0.426257,68771.0,68761.0,0.3608]
[1730664165414,0.5380908,68771.0,68762.0,0.065466]
[1730664165690,0.5380908,68771.0,68761.0,0.3608]
[1730664166085,0.4726338,68771.0,68770.0,0.001]
[1730664166286,0.13226,68774.0,68770.0,0.066458]
[1730664166486,0.3608,68771.0,68770.0,0.066458]
[1730664166784,0.39909232,68771.0,68770.0,0.067458]
[1730664167093,0.39909171,68771.0,68770.0,0.067458]
[1730664167594,0.39809171,68771.0,68770.0,0.066458]
[1730664167793,0.40002297,68771.0,68770.0,0.066458]
[1730664168289,0.39902297,68771.0,68770.0,0.066458]
[1730664168495,0.3648,68771.0,68770.0,0.12477872]
[1730664168690,0.004,68771.0,68770.0,0.067458]
[1730664168892,0.10116,68771.0,68770.0,0.066458]
[1730664169197,0.10116,68771.0,68770.0,0.067458]
[1730664169198,0.10316,68771.0,68770.0,0.067458]
[1730664170091,0.10216,68771.0,68770.0,0.067458]
[1730664170487,0.10016,68771.0,68770.0,0.066458]
[1730664170689,0.10116,68771.0,68770.0,0.067458]
[1730664170888,0.10116,68771.0,68770.0,0.066458]
[1730664171090,0.10016,68771.0,68770.0,0.065458]
[1730664171293,0.10016,68771.0,68770.0,0.066458]
[1730664171294,0.10116,68771.0,68770.0,0.066458]
[1730664172387,0.10116,68771.0,68770.0,0.065458]
[1730664173100,0.10016,68771.0,68770.0,0.065458]
[1730664173303,0.10116,68771.0,68770.0,0.065458]
[1730664173804,0.10016,68771.0,68770.0,0.065458]
[1730664174109,0.10116,68771.0,68770.0,0.066458]
[1730664174294,0.10016,68771.0,68770.0,0.066458]
[1730664174605,0.10116,68771.0,68770.0,0.066458]
[1730664174798,0.10116,68771.0,68770.0,0.001]
[1730664175004,0.10116,68771.0,68768.0,0.06546]
[1730664175395,0.3608,68769.0,68768.0,0.06546]
[1730664176612,0.3628,68771.0,68770.0,0.001]
[1730664176910,0.46196,68771.0,68770.0,0.001]
[1730664177405,0.46096,68771.0,68770.0,0.001]
[1730664178293,0.46196,68771.0,68770.0,0.001]
[1730664178993,0.527417,68771.0,68770.0,0.001]
[1730664179198,0.963657,68771.0,68770.0,0.001]
[1730664179397,1.00080431,68771.0,68770.0,0.001]
[1730664179599,1.03771418,68771.0,68770.0,0.001]
[1730664179800,1.00056687,68771.0,68770.0,0.001]
[1730664180006,1.00056687,68771.0,68759.0,0.00230152]
[1730664180007,0.99956687,68771.0,68759.0,0.00230152]
[1730664180203,0.065467,68761.0,68759.0,0.00230152]
[1730664180422,0.09916,68760.0,68759.0,0.00230152]
[1730664182408,0.09916,68760.0,68759.0,0.06776952]
[1730664182798,0.3608,68764.0,68763.0,0.065465]
[1730664183000,0.3608,68771.0,68762.0,0.1118338]
[1730664183207,0.09964,68767.0,68766.0,0.065462]
[1730664183402,0.09964,68767.0,68763.0,0.0952]
[1730664183403,0.3608,68771.0,68764.0,0.05737391]
[1730664183614,0.09964,68770.0,68769.0,0.10847695]
[1730664183803,0.39554942,68771.0,68769.0,0.04301795]
[1730664184005,0.39554942,68771.0,68770.0,0.065458]
[1730664184309,0.49518942,68771.0,68770.0,0.065458]
[1730664184713,0.39554942,68771.0,68770.0,0.065458]
[1730664186908,0.39754942,68771.0,68770.0,0.065458]
[1730664189818,0.39754942,68771.0,68770.0,0.066458]
[1730664190412,0.39754942,68771.0,68770.0,0.001]
[1730664190413,0.47761346,68771.0,68770.0,0.001]
[1730664190609,0.57725346,68771.0,68770.0,0.001]
[1730664190808,0.57725346,68771.0,68768.0,0.06546]
[1730664191117,0.08006404,68770.0,68769.0,0.065459]
[1730664191901,0.08006404,68770.0,68755.0,0.3608]
[1730664192105,0.07987737,68769.0,68766.0,0.065461]
[1730664192308,0.03704873,68768.0,68766.0,0.065461]
[1730664192511,0.03704873,68767.0,68766.0,0.065461]
[1730664193712,0.49694942,68771.0,68757.0,0.03450258]
[1730664193913,0.001,68767.0,68766.0,0.066462]
[1730664194314,0.03799096,68767.0,68766.0,0.066462]
[1730664194922,0.03699096,68767.0,68766.0,0.065462]
[1730664195706,0.03699096,68767.0,68764.0,0.065463]
[1730664195707,0.14882476,68767.0,68764.0,0.065463]
[1730664195920,0.3608,68765.0,68764.0,0.065463]
[1730664196117,0.39779096,68765.0,68759.0,0.00530152]
[1730664196322,0.03699096,68764.0,68761.0,0.065466]
[1730664196614,0.03699096,68764.0,68759.0,0.00530152]
[1730664196615,0.1118338,68762.0,68759.0,0.00230152]
[1730664196805,0.19843096,68761.0,68759.0,0.00230152]
[1730664197009,0.065473,68754.0,68737.0,0.065489]
[1730664197210,0.1118338,68749.0,68747.0,0.065479]
[1730664197422,0.03699096,68748.0,68747.0,0.065479]
[1730664198308,0.03699096,68748.0,68735.0,0.0626]
[1730664198505,0.065482,68746.0,68742.0,0.05744111]
[1730664198706,0.3608,68743.0,68742.0,0.05744111]
[1730664198913,0.3608,68743.0,68741.0,0.05744111]
[1730664199325,0.3608,68743.0,68740.0,0.05744111]
[1730664199621,0.1118338,68741.0,68740.0,0.04303745]
[1730664200207,0.1773198,68741.0,68740.0,0.04303745]
[1730664200407,0.065486,68740.0,68737.0,0.04303745]
[1730664200608,0.09964,68739.0,68737.0,0.04303745]
[1730664200921,0.065488,68738.0,68737.0,0.04303745]
[1730664201111,0.501928,68738.0,68737.0,0.04303745]
[1730664202018,0.862728,68738.0,68737.0,0.04303745]
[1730664202221,0.06549,68737.0,68724.0,0.05732424]
[1730664202524,0.5381348,68725.0,68724.0,0.05732424]
[1730664202719,0.6377748,68725.0,68724.0,0.05732424]
[1730664202925,0.5683348,68725.0,68724.0,0.05732424]
[1730664203113,0.6680148,68725.0,68724.0,0.05732424]
[1730664203425,1.1045348,68725.0,68724.0,0.05732424]
[1730664203612,1.1045348,68725.0,68724.0,0.07232424]
[1730664204527,0.065508,68718.0,68716.0,0.00014]
[1730664204723,0.4726338,68717.0,68707.0,0.3608]
[1730664204924,0.065518,68707.0,68700.0,0.1]
[1730664205131,0.525998,68707.0,68700.0,0.1]
[1730664205316,0.962638,68707.0,68700.0,0.1]
[1730664205715,0.065524,68701.0,68700.0,0.1]
[1730664205915,0.6499916,68701.0,68700.0,0.1]
[1730664206221,1.3211476,68701.0,68671.0,0.3608]
[1730664206416,1.3211476,68701.0,68679.0,0.065544]
[1730664206417,0.3608,68682.0,68679.0,0.065544]
[1730664206623,0.09968,68681.0,68676.0,0.065547]
[1730664206827,0.09968,68681.0,68677.0,0.065546]
[1730664207132,0.09968,68681.0,68671.0,0.3608]
[1730664207325,0.09968,68681.0,68678.0,0.065545]
[1730664207523,0.09968,68681.0,68679.0,0.065545]
[1730664207724,0.09968,68681.0,68680.0,0.01]
[1730664207725,0.10068,68681.0,68680.0,0.01]
[1730664208028,0.10068,68681.0,68680.0,0.075544]
[1730664208323,0.10068,68681.0,68680.0,0.01]
[1730664208527,0.10168,68681.0,68680.0,0.02]
[1730664209723,0.167223,68681.0,68680.0,0.02]
[1730664209924,0.167223,68681.0,68680.0,0.016]
[1730664210115,0.10168,68681.0,68680.0,0.006]
[1730664210319,0.10168,68681.0,68680.0,0.012]
[1730664210823,0.10172,68681.0,68680.0,0.077544]
[1730664211031,0.002,68681.0,68680.0,0.077544]
[1730664211624,0.1118338,68691.0,68680.0,0.077544]
[1730664211625,0.09972,68690.0,68689.0,0.065535]
[1730664211931,0.3608,68695.0,68694.0,0.06553]
[1730664212129,0.1118338,68702.0,68701.0,0.065524]
[1730664212928,0.3608,68705.0,68704.0,0.065521]
[1730664214525,0.3608,68705.0,68704.0,0.066521]
[1730664214526,0.3698,68705.0,68704.0,0.066521]
[1730664216129,0.3758,68705.0,68704.0,0.067521]
[1730664216520,0.47704,68705.0,68704.0,0.067521]
[1730664216732,0.47104,68705.0,68704.0,0.066521]
[1730664217038,0.47404,68705.0,68704.0,0.066521]
[1730664217221,0.46704,68705.0,68704.0,0.065521]
[1730664217542,0.47004,68705.0,68704.0,0.066521]
[1730664217838,0.47004,68705.0,68704.0,0.001]
[1730664218330,0.46804,68705.0,68704.0,0.001]
[1730664218542,0.47304,68705.0,68704.0,0.001]
[1730664218724,1.0870338,68705.0,68704.0,0.001]
[1730664218923,0.065526,68699.0,68695.0,0.0329]
[1730664219129,0.4726338,68696.0,68695.0,0.0329]
[1730664220035,0.4726338,68696.0,68690.0,0.065534]
[1730664220337,0.1118338,68691.0,68690.0,0.065534]
[1730664220531,0.2130738,68691.0,68690.0,0.065534]
[1730664221537,0.2150738,68691.0,68690.0,0.065534]
[1730664222034,0.2180738,68691.0,68690.0,0.065534]
[1730664222736,0.2180738,68691.0,68687.0,0.06771953]
[1730664223135,0.3608,68690.0,68687.0,0.06771953]
[1730664223529,0.3608,68690.0,68687.0,0.00218353]
[1730664223936,0.2160738,68691.0,68687.0,0.00318353]
[1730664224138,0.10124,68690.0,68688.0,0.065536]
[1730664224435,0.10124,68690.0,68689.0,0.065535]
[1730664225461,0.10224,68690.0,68689.0,0.065535]
[1730664225632,0.001,68690.0,68689.0,0.065535]
[1730664225939,0.10224,68690.0,68689.0,0.065535]
[1730664227542,0.10424,68690.0,68689.0,0.065535]
[1730664228039,0.003,68690.0,68689.0,0.065535]
[1730664228235,0.10424,68690.0,68689.0,0.065535]
[1730664228738,0.003,68690.0,68689.0,0.065535]
[1730664228938,0.10424,68690.0,68689.0,0.065535]
[1730664229339,0.003,68690.0,68689.0,0.065535]
[1730664229534,0.1148338,68690.0,68689.0,0.065535]
[1730664230137,0.4756338,68690.0,68685.0,0.065539]
[1730664230334,0.4746338,68690.0,68689.0,0.002]
[1730664230742,0.4726338,68690.0,68689.0,0.002]
[1730664231239,0.4736338,68690.0,68687.0,0.065536]
[1730664231536,0.4756338,68690.0,68687.0,0.065536]
[1730664231739,0.4756338,68690.0,68683.0,0.065541]
[1730664231941,0.1118338,68684.0,68683.0,0.065541]
[1730664234039,0.4726338,68690.0,68687.0,0.065536]
[1730664234343,0.4726338,68690.0,68688.0,0.065536]
[1730664234532,0.4726338,68690.0,68683.0,0.004]
[1730664234726,0.4726338,68690.0,68689.0,0.065535]
[1730664235043,0.50781878,68690.0,68689.0,0.065535]
[1730664235430,0.60905878,68690.0,68689.0,0.065535]
[1730664237139,0.61005878,68690.0,68689.0,0.065535]
[1730664237445,0.61205878,68690.0,68689.0,0.065535]
[1730664238137,0.25125878,68690.0,68689.0,0.065535]
[1730664238342,0.61205878,68690.0,68689.0,0.065535]
[1730664242045,0.61205878,68690.0,68684.0,0.06554]
[1730664242253,0.1118338,68685.0,68684.0,0.06554]
[1730664243138,0.1118338,68685.0,68682.0,0.0321]
[1730664243343,0.1118338,68685.0,68684.0,0.003]
[1730664243534,0.6604276,68685.0,68678.0,0.36188]
[1730664243738,0.1773788,68679.0,68678.0,0.3608]
[1730664243939,0.2799788,68679.0,68678.0,0.3608]
[1730664244339,0.3262676,68679.0,68669.0,0.00108]
[1730664244649,0.1773868,68670.0,68669.0,0.00108]
[1730664244846,0.1773868,68670.0,68665.0,0.131258]
[1730664245044,0.10264,68669.0,68665.0,0.131258]
[1730664246345,0.10264,68669.0,68665.0,0.098858]
[1730664247139,0.13864042,68669.0,68664.0,0.00016]
[1730664247351,0.065559,68664.0,68660.0,0.00218467]
[1730664247647,0.06556,68663.0,68660.0,0.00218467]
[1730664248350,0.065561,68662.0,68660.0,0.00218467]
[1730664248743,0.065561,68662.0,68660.0,0.00318467]
[1730664249443,0.1773928,68665.0,68660.0,0.00318467]
[1730664249945,0.1773928,68665.0,68660.0,0.00518467]
[1730664249946,0.065559,68664.0,68660.0,0.00518467]
[1730664250463,0.06556,68663.0,68660.0,0.00518467]
[1730664250652,0.06556,68663.0,68660.0,0.00318467]
[1730664250857,0.06556,68663.0,68660.0,0.00518467]
[1730664251153,0.065562,68661.0,68660.0,0.003]
[1730664251556,0.065562,68661.0,68660.0,0.002]
[1730664251557,0.502482,68661.0,68660.0,0.002]
[1730664251764,0.502482,68661.0,68660.0,0.003]
[1730664252948,0.065559,68664.0,68660.0,0.003]
[1730664253256,0.1118338,68665.0,68660.0,0.003]
[1730664253459,0.1118338,68665.0,68660.0,0.101463]
[1730664253460,0.10264,68664.0,68660.0,0.101463]
[1730664253754,0.10264,68664.0,68663.0,0.06556]
[1730664254053,0.1118338,68665.0,68661.0,0.0321]
[1730664254260,0.1118338,68665.0,68664.0,0.065559]
[1730664254451,0.2144738,68665.0,68664.0,0.065559]
[1730664255042,0.1118338,68665.0,68664.0,0.065559]
[1730664255249,0.03600042,68669.0,68668.0,0.065555]
[1730664255446,0.10264,68669.0,68668.0,0.065555]
[1730664256050,0.1118338,68670.0,68669.0,0.065554]
[1730664259963,0.1128338,68670.0,68669.0,0.065554]
[1730664260162,0.1138338,68670.0,68669.0,0.065554]
[1730664260553,0.1128338,68670.0,68669.0,0.065554]
[1730664260750,0.1138338,68670.0,68669.0,0.065554]
[1730664261153,0.1128338,68670.0,68669.0,0.065554]
[1730664261354,0.1138338,68670.0,68669.0,0.065554]
[1730664261757,0.1128338,68670.0,68669.0,0.065554]
[1730664261956,0.1138338,68670.0,68669.0,0.065554]
[1730664262550,0.002,68670.0,68669.0,0.426354]
[1730664263965,0.002,68670.0,68669.0,0.863234]
[1730664264264,0.1118338,68677.0,68669.0,0.866234]
[1730664264562,0.1118338,68677.0,68676.0,0.065548]
[1730664266869,0.1138338,68677.0,68676.0,0.065548]
[1730664267367,0.1168338,68677.0,68676.0,0.065548]
[1730664267865,0.1168338,68677.0,68676.0,0.158248]
[1730664268954,0.1823808,68677.0,68676.0,0.158248]
[1730664269354,0.1803808,68677.0,68676.0,0.0315]
[1730664269567,0.1803808,68677.0,68669.0,0.3608]
[1730664269568,0.065549,68674.0,68673.0,0.06555]
[1730664270462,0.065549,68674.0,68671.0,0.065552]
[1730664270669,0.1118338,68672.0,68671.0,0.065552]
[1730664271165,0.065553,68670.0,68669.0,0.3608]
[1730664271353,0.168193,68670.0,68669.0,0.3608]
[1730664271755,0.168193,68670.0,68666.0,0.097357]
[1730664271953,0.168193,68670.0,68655.0,0.0332]
[1730664271954,0.1118338,68667.0,68655.0,0.0332]
[1730664272171,0.42636,68663.0,68660.0,0.00108]
[1730664272375,0.065561,68662.0,68660.0,0.00108]
[1730664272670,0.21324059,68661.0,68660.0,0.00108]
[1730664273066,0.14767859,68661.0,68652.0,0.12977]
[1730664273366,0.1118338,68653.0,68652.0,0.12977]
[1730664274274,0.1118338,68653.0,68652.0,0.10697]
[1730664274460,0.1118338,68653.0,68652.0,0.0414]
[1730664274665,0.1118338,68653.0,68652.0,0.099033]
[1730664275064,0.1118338,68653.0,68652.0,0.090033]
[1730664275259,0.1118338,68653.0,68652.0,0.099033]
[1730664275260,0.1128338,68653.0,68652.0,0.099033]
[1730664275457,0.001,68653.0,68652.0,0.164603]
[1730664275764,0.10296,68653.0,68652.0,0.10697]
[1730664275968,0.2147938,68653.0,68652.0,0.10697]
[1730664276370,0.2157938,68653.0,68652.0,0.17460081]
[1730664277467,0.2157938,68653.0,68652.0,0.11697]
[1730664280071,0.1138338,68653.0,68652.0,0.11697]
[1730664280267,0.2147938,68653.0,68652.0,0.10697]
[1730664280571,0.2157938,68653.0,68652.0,0.11397]
[1730664280767,0.2147938,68653.0,68652.0,0.10497]
[1730664280969,0.10396,68653.0,68652.0,0.11097]
[1730664281461,0.002,68653.0,68652.0,0.11097]
[1730664285490,0.002,68653.0,68652.0,0.54797]
[1730664286362,0.002,68653.0,68652.0,0.11097]
[1730664287073,0.002,68653.0,68652.0,0.54797]
[1730664287470,0.002,68653.0,68652.0,0.11097]
[1730664287872,0.002,68653.0,68652.0,0.54797]
[1730664288272,0.002,68653.0,68652.0,0.11097]
[1730664289278,0.002,68653.0,68652.0,0.54797]
[1730664291966,0.002,68653.0,68652.0,0.11097]
[1730664295375,0.002,68653.0,68652.0,0.47177]
[1730664297676,0.002,68653.0,68652.0,0.63820738]
[1730664298574,0.002,68653.0,68652.0,0.5665778]
[1730664299981,0.002,68653.0,68652.0,0.56669293]
[1730664301078,0.002,68653.0,68652.0,0.65267401]
[1730664301673,0.002,68653.0,68652.0,0.5668133]
[1730664302777,0.002,68653.0,68652.0,0.65366809]
[1730664302980,0.002,68653.0,68652.0,0.5668133]
[1730664303695,0.002,68653.0,68652.0,0.6536696]
[1730664303883,0.002,68653.0,68652.0,0.47177]
[1730664307589,0.002,68653.0,68652.0,0.07857]
[1730664307590,0.1794028,68653.0,68652.0,0.07857]
[1730664307791,0.1794028,68653.0,68652.0,0.013]
[1730664308678,0.2144783,68653.0,68652.0,0.013]
[1730664309881,0.25003124,68653.0,68652.0,0.013]
[1730664310389,0.21495574,68653.0,68652.0,0.013]
[1730664310888,0.21495574,68653.0,68652.0,0.10844098]
[1730664313188,0.21495574,68653.0,68652.0,0.18077608]
[1730664314000,0.21495574,68653.0,68652.0,0.0853351]
[1730664314189,0.21495574,68653.0,68652.0,0.013]
[1730664316597,0.57575574,68653.0,68652.0,0.013]
[1730664319304,0.67663574,68653.0,68652.0,0.013]
[1730664320610,0.57575574,68653.0,68652.0,0.013]
[1730664320804,0.67663574,68653.0,68652.0,0.013]
[1730664321003,0.67663574,68653.0,68645.0,0.05785399]
[1730664321004,0.065576,68646.0,68645.0,0.05785399]
[1730664321208,0.3608,68646.0,68637.0,0.12343799]
[1730664321406,0.1118338,68641.0,68637.0,0.12343799]
[1730664321700,0.10088,68640.0,68637.0,0.065584]
[1730664322807,0.10088,68640.0,68635.0,0.05785399]
[1730664322808,0.1118338,68641.0,68635.0,0.05785399]
[1730664323015,0.10088,68640.0,68639.0,0.065583]
[1730664323309,0.10188,68640.0,68639.0,0.065583]
[1730664323809,0.001,68640.0,68639.0,0.065583]
[1730664324003,0.10188,68640.0,68639.0,0.10895375]
[1730664324312,0.001,68640.0,68639.0,0.11395375]
[1730664324608,0.1128338,68640.0,68639.0,0.11395375]
[1730664325005,0.1784158,68640.0,68639.0,0.04837075]
[1730664325212,0.1784158,68640.0,68639.0,0.005]
[1730664325408,0.13910138,68640.0,68639.0,0.005]
[1730664326014,0.13910138,68640.0,68639.0,0.1730912]
[1730664326515,0.14010138,68640.0,68639.0,0.0793351]
[1730664327219,0.14010138,68640.0,68639.0,0.007]
[1730664327516,0.17860957,68640.0,68639.0,0.007]
[1730664329412,0.61568957,68640.0,68639.0,0.06480532]
[1730664329608,0.17860957,68640.0,68639.0,0.06480532]
[1730664330007,0.27948957,68640.0,68639.0,0.007]
[1730664330313,0.27948957,68640.0,68639.0,0.06480058]
[1730664330715,0.27948957,68640.0,68639.0,0.06480038]
[1730664331099,0.21390757,68640.0,68639.0,0.007]
[1730664331309,0.21390757,68640.0,68639.0,0.06480105]
[1730664332306,0.11302757,68640.0,68639.0,0.007]
[1730664332508,0.27884957,68640.0,68639.0,0.06480105]
[1730664332811,0.27884957,68640.0,68639.0,0.007]
[1730664334202,0.27884957,68640.0,68639.0,0.006]
[1730664335012,0.17860957,68640.0,68639.0,0.006]
[1730664335213,0.27884957,68640.0,68639.0,0.006]
[1730664336723,0.71592957,68640.0,68639.0,0.006]
[1730664337202,0.27884957,68640.0,68639.0,0.006]
[1730664337607,0.066582,68640.0,68639.0,0.006]
[1730664337814,0.001,68640.0,68639.0,0.071583]
[1730664338011,0.001,68640.0,68639.0,0.103583]
[1730664338214,0.10124,68640.0,68639.0,0.136383]
[1730664338714,0.10124,68640.0,68639.0,0.1797331]
[1730664338916,0.10124,68640.0,68639.0,0.136383]
[1730664339613,0.10124,68640.0,68639.0,0.0708]
[1730664340010,0.066582,68640.0,68639.0,0.0493501]
[1730664340218,0.603902,68640.0,68639.0,0.006]
[1730664343116,0.603902,68640.0,68625.0,0.07446415]
[1730664343117,0.065594,68627.0,68625.0,0.07446415]
[1730664343318,0.27786257,68626.0,68625.0,0.00218566]
[1730664343618,0.065601,68620.0,68619.0,0.0305]
[1730664344123,0.17762857,68620.0,68619.0,0.0305]
[1730664344507,0.11202757,68620.0,68619.0,0.0305]
[1730664344810,0.10024,68620.0,68619.0,0.096102]
[1730664345016,0.21226757,68620.0,68619.0,0.096102]
[1730664345217,0.11202757,68620.0,68619.0,0.096102]
[1730664345423,0.21326757,68620.0,68619.0,0.108102]
[1730664345916,0.21426757,68620.0,68619.0,0.115102]
[1730664348410,0.10224,68620.0,68619.0,0.115102]
[1730664348618,0.002,68620.0,68619.0,0.115102]
[1730664349517,0.03623971,68623.0,68622.0,0.065599]
[1730664349819,0.10028,68624.0,68623.0,0.065598]
[1730664350117,0.065596,68626.0,68625.0,0.065596]
[1730664350314,0.10028,68628.0,68619.0,0.0495]
[1730664350520,0.065591,68631.0,68630.0,0.065591]
[1730664350726,0.165871,68631.0,68630.0,0.065591]